Cogmind - Beta 15 @@@ ROGUE MODE // 2025.07.26 @ 22:41:58 Player: ranter Result: Destroyed by W1-CAS(j) with Overtuned Pulse Rifle Performance ------------- Evolutions (0) 0 Regions Visited (3) 600 Robots Destroyed (11) 55 Value Destroyed (398) 398 Prototype IDs (9) 180 Alien Tech Used (0) 0 Bonus (800) 800 TOTAL SCORE: 2033 Bonus ------- Registered with UFD 300 Met Optimus in HQ 500 Cogmind --------- Core Integrity 0/250 Matter 290/300 Energy 80/100 System Corruption 10% Temperature Cool (38) Movement Hovering (60) Location -8/Scraptown Parts ------- > --- POWER (1) -------- (None) > --- PROPULSION (2) --- Improved Hover Unit > --- UTILITY (2) ------ (None) > --- WEAPON (2) ------- (None) > --- INVENTORY (5) ---- Light Deuterium Engine Surveybot 17 Chip Advanced ECM Suite Botcube Peak State ------------ > --- POWER ------------ Light Deuterium Engine > --- PROPULSION ------- Cesium-ion Thruster Cesium-ion Thruster > --- UTILITY ---------- Sensor Array Makeshift Hacking Suite > --- WEAPON ----------- Datajack Plasma Cutter > --- INVENTORY -------- Light Deuterium Engine Improved Hover Unit Surveybot 17 Chip Advanced ECM Suite Botcube [Rating: 19] Favorites ----------- Power Subdweller Power Source Engine Subdweller Power Source Power Core Nuclear Core Propulsion Hover Unit Leg Aluminum Leg Wheel Wheel Hover Unit Hover Unit Flight Unit Cesium-ion Thruster Utility Sensor Array Device Sensor Array Storage Small Storage Unit Hackware Hacking Suite Weapon Improved Assault Rifle Ballistic Gun Improved Assault Rifle Ballistic Cannon Light Cannon Special Weapon Mining Laser Special Melee Weapon Datajack Build | -11 -10 -10 -8 ------- Run | Yrd Mat Sub Scr Slots Evolved . | . . . . Power . | . . . . Propulsion . | . . . . Utility . | . . . . Weapon . | . . . . Parts Attached 40 | 6 9 9 16 Power 7 | 1 . 2 4 Engine 5 | 1 . 2 2 Core 2 | . . . 2 Reactor . | . . . . Propulsion 13 | 2 2 4 5 Treads . | . . . . Leg 2 | 2 . . . Wheel 3 | . . 2 1 Hover 5 | . 2 2 1 Flight 3 | . . . 3 Utility 7 | 1 2 . 4 Device 2 | . 2 . . Storage 3 | 1 . . 2 Processor . | . . . . Hackware 2 | . . . 2 Protection . | . . . . Artifact . | . . . . Weapon 13 | 2 5 3 3 Energy Gun . | . . . . Energy Cannon . | . . . . Ballistic Gun 7 | 2 1 3 1 Ballistic Cannon 3 | . 3 . . Launcher . | . . . . Special Weapon 2 | . 1 . 1 Impact Weapon . | . . . . Slashing Weapon . | . . . . Piercing Weapon . | . . . . Special Melee Weapon 1 | . . . 1 Unidentified Prototypes 1 | . 1 . . Parts Lost 12 | . . 5 7 Power 2 | . . 1 1 Propulsion 6 | . . 4 2 Utility 2 | . . . 2 Weapon 2 | . . . 2 Highest Loss Streak 7 | . . 3 7 To Critical Strikes . | . . . . Average Backups 7 | 1 7 6 8 Power . | . 1 . . Propulsion 1 | . 1 . 1 Utility 1 | . . 1 1 Weapon 3 | . 4 3 3 Tool/Special . | . . . . Unused Backups 21 | 1 6 1 13 Power 2 | . . 1 1 Propulsion 4 | 1 2 . 1 Utility 4 | . 1 . 3 Weapon 10 | . 3 . 7 Tool/Special 1 | . . . 1 Average Slot Usage (%) 82 | . 99 88 72 Engine 13 | . 14 13 13 Leg 1 | . 7 . . Wheel 15 | . . 3 25 Hover 7 | . 21 13 . Flight 1 | . . . 2 Device 13 | . 13 14 13 Storage 13 | . 14 14 12 Ballistic Gun 5 | . 5 27 . Ballistic Cannon 3 | . 12 . . Special Weapon 3 | . 9 . 1 Peak Build Rating 19 | 6 10 13 19 Average Rating 9 | 4 8 12 9 On Entrance 7 | . 6 10 13 Naked Turns 2 | . . . 2 Heaviest Build 28 | 12 17 18 28 Greatest Support 30 | 20 20 30 30 Greatest Overweight (x) 2 | . 1 2 1 Average Overweight (x) . | . . 1 . Largest Inventory Capacity 15 | 8 8 8 15 Average Capacity 9 | 6 8 8 11 Most Carried 15 | 3 8 8 15 Average Carried 8 | 1 7 6 9 Final Capacity 8 | 8 8 8 5 Final Carried 8 | 2 8 7 4 Class Distribution -------------------- 94% | Mutant 4% | Sprinter Dominant Class ---------------- Mutant | -10/Materials Mutant | -10/Subcaves Mutant | -8/Scraptown Resources | -11 -10 -10 -8 ----------- Run | Yrd Mat Sub Scr Matter Collected 781 | 152 90 289 250 Remotely . | . . . . Salvage Created 375 | . 70 305 . Parts 38 | . 11 27 . Haulers Intercepted . | . . . . Recyclers Shooed . | . . . . Parts Field Recycled . | . . . . Retrieved Matter . | . . . . Parts Self-Destructed 2 | . . . 2 Prevented . | . . . . Kills | -11 -10 -10 -8 ------- Run | Yrd Mat Sub Scr Combat Hostiles Destroyed 10 | . 3 7 . Guns 7 | . . 7 . Cannons 3 | . 3 . . Classes Destroyed 3 | . 2 1 . Watcher 1 | . 1 . . Grunt 3 | . 3 . . Subdweller 7 | . . 7 . Best Kill Streak 3 | . 3 2 . Combat Bots Only 3 | . 3 2 . Max Kills in Single Turn 1 | . 1 1 . Gunslinging . | . . . . Exploded . | . . . . Melee . | . . . . Uniques/NPCs Destroyed . | . . . . Combat | -11 -10 -10 -8 -------- Run | Yrd Mat Sub Scr Hostile Shots Fired 77 | . 7 45 25 Missed 22 | . 2 12 8 Hits 55 | . 5 33 17 Melee 1 | . . . 1 Projectile 54 | . 5 33 16 Critical Strikes 4 | . . 2 2 Damage Taken 1139 | . 91 737 311 Core 268 | . . 136 132 Absorbed by Shields . | . . . . Core Remaining (%) 100 | 100 . . . Volleys Fired 72 | . 37 34 1 Largest 2 | . 2 2 1 Hottest 100 | . 100 46 20 Shots Fired 115 | . 46 68 1 Gun 68 | . . 68 . Cannon 18 | . 18 . . Launcher . | . . . . Special 29 | . 28 . 1 Kinetic 86 | . 18 68 . Thermal 29 | . 28 . 1 Explosive . | . . . . Electromagnetic . | . . . . Robot Hit Streak 18 | . 5 18 . Robot Miss Streak 2 | . 2 2 . Penetration Max . | . . . . Secondary Targets 2 | . . 2 . Max Gunslinging Chain 1 | . . 1 . Shots Hit Robots 68 | . 11 57 . Core Hits 19 | . 4 15 . Critical Kills . | . . . . Critical Parts Destroyed . | . . . . Critical Strikes . | . . . . Melee Attacks 1 | . . . 1 Impact . | . . . . Slashing . | . . . . Piercing . | . . . . Sneak Attacks . | . . . . Combat Hostiles . | . . . . Follow-up Attacks . | . . . . Damage Inflicted 1056 | . 179 877 . Guns 877 | . . 877 . Cannons 179 | . 179 . . Explosions . | . . . . Melee . | . . . . Ramming . | . . . . Kinetic 1056 | . 179 877 . Thermal . | . . . . Explosive . | . . . . Electromagnetic . | . . . . Impact . | . . . . Slashing . | . . . . Piercing . | . . . . Highest Corruption 10 | . . . 10 Average Corruption 9 | . . . 9 Corruption Purged . | . . . . Corruption Blocked . | . . . . Overload Shots . | . . . . Overflow Damage . | . . . . Projectiles . | . . . . Explosions . | . . . . Melee . | . . . . Knockbacks 4 | . 4 . . Impact . | . . . . Kinetic 4 | . 4 . . Secondary . | . . . . Self-Inflicted Damage . | . . . . Shots . | . . . . Rammed . | . . . . Targets Rammed . | . . . . Kicked . | . . . . Crushed . | . . . . Highest Temperature 284 | . 208 284 27 Average Temperature 67 | . 63 162 15 Received Heat Transfer 583 | . 30 420 133 Siege Activations . | . . . . Martial Activations . | . . . . Shielding Activations . | . . . . Robots Disrupted . | . . . . Combat Hostiles . | . . . . Robots Corrupted . | . . . . Combat Hostiles . | . . . . Parts Fried . | . . . . Impact Corruptions . | . . . . Robots Melted . | . . . . Combat Hostiles . | . . . . Parts Melted 1 | . . 1 . Heat Transferred . | . . . . Parts Sabotaged . | . . . . Parts Stolen . | . . . . Parts Stripped . | . . . . Power Chain Reactions . | . . . . Alert | -11 -10 -10 -8 ------- Run | Yrd Mat Sub Scr Maximum Alert Level . | . . . . Low Security (%) 100 | 100 100 . . Level 1 . | . . . . Level 2 . | . . . . Level 3 . | . . . . Level 4 . | . . . . Level 5 . | . . . . High Security . | . . . . Max Security . | . . . . Peak Influence 60 | . 60 . . Initial . | . . . . Average 5 | . 6 . . Influence Increases 95 | . 95 . . Destroy 0b10 Robot/C 60 | . 60 . . Destroy 0b10 Robot/NC 5 | . 5 . . Destroy Leader 12 | . 12 . . Successful Hack 12 | . 12 . . Destroy Structure 6 | . 6 . . Influence Decreases 95 | . 95 . . Time Decay 95 | . 95 . . Squads Dispatched 3 | . 3 . . Investigation 3 | . 3 . . Extermination . | . . . . Reinforcement . | . . . . Assault . | . . . . Garrison . | . . . . Intercept . | . . . . Searches Triggered . | . . . . Construction Impeded . | . . . . Haulers Reinforced . | . . . . Active Scanning Responses . | . . . . Cargo Convoy Interrupts . | . . . . Stealth | -11 -10 -10 -8 --------- Run | Yrd Mat Sub Scr Distress Signals . | . . . . Communications Jammed . | . . . . Distress Signals . | . . . . Times Spotted 31 | . 7 7 17 Peak Tracking Total 12 | . 3 2 12 Tactical Retreats 2 | . 1 1 . Traps | -11 -10 -10 -8 ------- Run | Yrd Mat Sub Scr Traps Triggered 2 | . 2 . . Indirectly . | . . . . Trap Hack Attempts . | . . . . Triggered . | . . . . Disarmed . | . . . . Reprogrammed . | . . . . Reused . | . . . . Traps Extracted . | . . . . Installed . | . . . . Triggered . | . . . . Machines | -11 -10 -10 -8 ---------- Run | Yrd Mat Sub Scr Machines Disabled . | . . . . Max in Single Turn . | . . . . Machines Repaired . | . . . . Machines Dismantled . | . . . . Machines Sabotaged . | . . . . Overloaded Fab Kills . | . . . . Hacking | -11 -10 -10 -8 --------- Run | Yrd Mat Sub Scr Machines Accessed 9 | . 3 . 6 Terminals 2 | . 2 . . Fabricators . | . . . . Repair Stations . | . . . . Recycling Units 1 | . 1 . . Scanalyzers . | . . . . Garrison Access . | . . . . Total Hacks 52 | . 14 . 38 Successful 49 | . 11 . 38 Failed 3 | . 3 . . Catastrophic . | . . . . Database Lockouts . | . . . . Manual 1 | . . . 1 Terminals 8 | . 8 . . Fabricators . | . . . . Repair Stations . | . . . . Recycling Units 6 | . 6 . . Scanalyzers . | . . . . Garrison Access . | . . . . Terminal Hacks 44 | . 6 . 38 Record 41 | . 4 . 37 Prototype ID Bank 1 | . 1 . . Recall Investigation 1 | . 1 . . Proto ID Catalog 1 | . . . 1 Fabricator Hacks . | . . . . Repair Station Hacks . | . . . . Recycling Unit Hacks 5 | . 5 . . Process 2 | . 2 . . Report Inventory 2 | . 2 . . Retrieve Matter 1 | . 1 . . Scanalyzer . | . . . . Garrison Access Hacks . | . . . . Unauthorized Hacks . | . . . . Terminals . | . . . . Fabricators . | . . . . Repair Stations . | . . . . Recycling Units . | . . . . Scanalyzers . | . . . . Garrison Access . | . . . . Data Cores Recovered . | . . . . Used . | . . . . Hacking Detections 3 | . 3 . . Full Trace Events 2 | . 2 . . Feedback Events . | . . . . Feedback Blocked . | . . . . Robot Schematics Acquired . | . . . . Robots Built . | . . . . Authchips . | . . . . Time . | . . . . Total Robot Build Rating . | . . . . Part Schematics Acquired . | . . . . Parts Built . | . . . . Authchips . | . . . . Time . | . . . . Total Part Build Rating . | . . . . Parts Repaired . | . . . . Time . | . . . . Parts Recycled . | . . . . Recycled Matter 228 | . 228 . . Retrieved Matter 276 | . 276 . . Retrieved Components . | . . . . Parts Scanalyzed . | . . . . Part Schematics Acquired . | . . . . Parts Damaged . | . . . . Bothacking | -11 -10 -10 -8 ------------ Run | Yrd Mat Sub Scr Used RIF Installer . | . . . . Robots Hacked . | . . . . Non-combat . | . . . . Combat . | . . . . Robot Hacks Applied . | . . . . Relay Couplers Released . | . . . . Fabnet Peak Effective % . | . . . . Robots Rewired . | . . . . Allies Hacked . | . . . . Hacks Repelled . | . . . . Allies | -11 -10 -10 -8 -------- Run | Yrd Mat Sub Scr Total Allies . | . . . . Largest Group . | . . . . Highest-Rated Group . | . . . . Highest-Rated Ally . | . . . . Total Orders . | . . . . Ally Attacks . | . . . . Total Damage . | . . . . Kills . | . . . . Allies Corrupted . | . . . . Allies Melted 1 | . . . 1 Intel | -11 -10 -10 -8 ------- Run | Yrd Mat Sub Scr Active Infowar (turns) 3238 | . 888 425 1925 Sensors 3160 | . 810 425 1925 ECM 78 | . 78 . . Robot Analysis Total . | . . . . Derelict Logs Recovered 2 | . . . 2 Drone Launches . | . . . . Drone Recoveries . | . . . . Exploration | -11 -10 -10 -8 ------------- Run | Yrd Mat Sub Scr Turns Passed 3349 | 59 936 425 1929 Spaces Moved 3127 | 40 622 211 2254 Core 9 | 5 . . 4 Treads . | . . . . Legs 179 | 35 144 . . Wheels 1930 | . . 59 1871 Hover 630 | . 478 152 . Flight 379 | . . . 379 Fastest Speed 32 | 50 116 95 32 Average Speed 93 | 111 116 142 81 Slowest Speed 180 | 120 120 180 115 Overloaded Moves . | . . . . Propulsion Burnouts . | . . . . Robots Hopped . | . . . . Potential Cave-ins . | . . . . Cave-ins Triggered . | . . . . Exploration Rate (%) 38 | 4 40 16 94 Regions Visited 3 Branch Regions 2 Pre-discovered Areas . | . . . . Known Exits Taken . | . . . . Unknown Exits Taken 3 | 1 1 1 . Scrap Searched 9 | . . . 9 Spaces Dug 9 | . 9 . . Terrain Destroyed 10 | . 10 . . Melee . | . . . . Projectile 10 | . 10 . . AOE . | . . . . Terrain Rammed . | . . . . Walls Destroyed . | . . . . Machines Disabled . | . . . . Actions | -11 -10 -10 -8 --------- Run | Yrd Mat Sub Scr Total 3390 | 55 730 266 2339 Wait 29 | . 29 . . Move 3124 | 39 621 210 2254 Hop . | . . . . Pick Up 61 | 9 20 8 24 Fast Attach 4 | . . . 4 Attach 16 | 6 1 5 4 Detach 2 | . . . 2 Swap 32 | . 9 5 18 Drop 48 | 1 13 4 30 Fire 72 | . 37 34 1 Melee 1 | . . . 1 Ram . | . . . . Kick . | . . . . Crush . | . . . . Escape Stasis . | . . . . Rewire . | . . . . Trap . | . . . . Miscellaneous 1 | . . . 1 Route ------- -11/Scrapyard -10/Materials (discovered 2 exits: [*Min] / [*Sub]) -10/Subcaves -8/Scraptown (discovered 2 exits: [*Fac x2]) History --------- Turn | Location | Event 5 | -11/Scrapyard | Discovered new exit (range 16) 60 | -11/Scrapyard | Entered Materials 303 | -10/Materials | Discovered new exit (range 16) 311 | -10/Materials | Build established: Mutant 470 | -10/Materials | Discovered new exit (range 4) 996 | -10/Materials | Entered Subcaves 997 | -10/Subcaves | Approached by a straggling Scientist 1145 | -10/Subcaves | Lost 3 parts (1p2n) 1346 | -10/Subcaves | Core integrity fell below 50% 1421 | -10/Subcaves | Entered Scraptown 1616 | -8/Scraptown | Visited Assassins FH 1630 | -8/Scraptown | Visited Comm Corps 1944 | -8/Scraptown | Scanned Subdweller tech in exchange for log data 1947 | -8/Scraptown | Learned Research stockpile data 1948 | -8/Scraptown | Learned Factory emergency access door positions 2001 | -8/Scraptown | Discovered new exit (range 5) 2085 | -8/Scraptown | Visited Bundlers 2158 | -8/Scraptown | Visited TADAMA 2195 | -8/Scraptown | Visited Spacefarers 2240 | -8/Scraptown | Visited Junk Repository 2298 | -8/Scraptown | Visited UFD Registry 2309 | -8/Scraptown | Visited SPCMW 2536 | -8/Scraptown | Registered with UFD as "Smoothflow" 2556 | -8/Scraptown | Visited Science Guys 2587 | -8/Scraptown | Visited Curators Association 2604 | -8/Scraptown | Visited Botcube Research 2610 | -8/Scraptown | Found Botcube 2821 | -8/Scraptown | Visited Cartography Club 2860 | -8/Scraptown | Found Surveybot 17 Chip 2953 | -8/Scraptown | Visited Scrapoid Pod Storage 2957 | -8/Scraptown | Found Scrapoid Pod 2976 | -8/Scraptown | Visited Observation Area 3079 | -8/Scraptown | Discovered new exit (range 5) 3111 | -8/Scraptown | Visited Scrap Suit Storage 3141 | -8/Scraptown | Visited DA-N13 Charitable Foundation 3147 | -8/Scraptown | Found DCF Scrap (29 items) 3219 | -8/Scraptown | Visited Abandonware Association 3227 | -8/Scraptown | Learned abandonware demo "REPAIR.EXE" 3237 | -8/Scraptown | Visited Chapter 10 3257 | -8/Scraptown | Met Optimus 3257 | -8/Scraptown | Accepted into 0bPrime 3290 | -8/Scraptown | Civil war broke out across Scraptown 3349 | -8/Scraptown | System corruption reached 10% 3350 | -8/Scraptown | Core integrity fell below 20% 3350 | -8/Scraptown | Destroyed by W1-CAS(j) with Overtuned Pulse Rifle Last Messages --------------- Bolt penetrates PI-U6V(E). PI-U6V(E) heat short circuits Scrap Suit. Bolt penetrates YG-FBY(c). VL-M06(E) suffers critical hit (Burn). Bolt penetrates VL-M06(E). VL-M06(E) critical meltdown. Plasma Cutter destroyed. Cesium-ion Thruster destroyed. Mak. Hacking Suite destroyed. Datajack destroyed. Cesium-ion Thruster destroyed. Sensor Array destroyed. System corrupted by crushing effect (+2). System corrupted by crushing effect (+5). System corrupted by crushing effect (+1). Penetrated by Bolt. Critical hit (Burn: +50). Lgt. Deuterium Engine destroyed. [Achievement: System Compromised] Penetrated by Bolt. Map ----- +----------------------------------------------------+ | | | | | | | | | | | | | | | | | | | | | | | ?????????????????????????????????????????????????? | | ?????????????????????????????????????????????????? | | ?????????????????????????????????????????????????? | | ?????????????????????????????????????????????????? | | ?????????????????????????????????????????????????? | | ?????????????????????????????????????????????????? | | ?????????????????????????????????????????????????? | | ?????????????????????????????????????????????????? | | ?????????????????????????????????????????????????? | | ?????????????????????????????????????????????????? | | ?????????????????????????????????????????????????? | | ??????????????????????#####??????????????????????? | | ??????????????????????#""[#??????????????????????? | | ##########???####?????#!=!#??????????????????????? | | #""|##"""#??## ##????#%h@#??????????????????????? | | #""|##!!"#### ######jj[##?????????????????????? | | ! = !!!j=b[=#?????????????????????? | | !%[ !%!= %!j=[!#?????????????????????? | | #############| ###########?????????????????????? | | ????????????##[!##???????????????????????????????? | | ???###########%=#????????????????????????????????? | | ???#"""""""""#!!#######??????????????????????????? | | ???#" "#[ #"! "??????????????????????????? | | ???#" """"" "# #" "#??????????????????????????? | | ???#" "???" "# ## X####???????????????????????? | | ???#" "???" "# #"! !"#???????????????????????? | | ???#" "???" "# #"! !"#???????????????????????? | | ???#" "???" "# #" "#???????????????????????? | | ???#" """"" "# #"! !"#???????????????????????? | | ???#" "# #" "#???????????????????????? | | ???#"" # ## ##???????????????????????? | | ???# # # #???????????????????????? | | ???##### ##### ## #######???????????????????????? | | ########%##### ## #############?????????????????? | | """"""" =" """[ "" "## "#?????????????????? | | %[% "## ""#?????????????????? | | !!* "## """" "#?????????????????? | | "## "### "#?????????????????? | | "## "#X ""#?????????????????? | +----------------------------------------------------+ Best States ------------- Heat Dissipation 25 Energy Generation 15 Energy Capacity 250 Matter Stores 300 Matter Capacity 300 Sight Range 16 Robot Scan Range 14 Terrain Scan Density 10 ECM Strength 1 Evasion (%) 63 Offensive Hacking 11 Item Schematics ----------------- None Robot Schematics ------------------ None Fabricated ------------ Nothing Repaired ---------- Nothing Alien Tech Used ----------------- None Achievements -------------- Crack Shot Librarian Risk Taker System Compromised Challenges ------------ None Game ------ Seed HardenedOpticalParser Manual? 0 Play Time 01:17:30 Cumulative 2.2 hours Start 2025.07.26 @ 21:11:43 End 2025.07.26 @ 22:41:58 Sessions 1 Manual Loads 0 Difficulty Rogue Special Mode None Game No. 3 Rogue 3 Adventurer 0 Explorer 0 Win Type - Total 0 Types 0/0/0/0/0/0/0/0/0/0 Lore% 7 Gallery% 3 Achievement% 3 Wizard Run 0 Options --------- Layout 1 ASCII 0 Keyboard 0 Movement Mouse Keybinds 0 Fullscreen 2 Font 48/Smallcaps Map View 50x35 Zoom Use 0% Tactical HUD 0 Map Filters NONE Filters NONE Steam 1 RUN: 2a6f5669-db83-4618-91bb-4f6a824e473b